Cogmind - Beta 13 @@@ ROGUE MODE // 2024.04.04 @ 00:23:33 Player: djrubbie Result: Self-destructed Performance ------------- Evolutions (3) 1500 Regions Visited (6) 1200 Robots Destroyed (32) 160 Value Destroyed (919) 919 Prototype IDs (24) 480 Alien Tech Used (0) 0 Bonus (254) 254 TOTAL SCORE: 4513 Bonus ------- Follower Combat Kills 81 Aligned with FarCom 300 Friendly Fire -127 Cogmind --------- Core Integrity 582/700 Matter 15/300 Energy 275/275 System Corruption 1% Temperature Cool (-59) Movement Treading (240) Ox1 Location -7/Factory Parts ------- > --- POWER (2) -------- Deuterium Engine > --- PROPULSION (3) --- Light Treads > --- UTILITY (5) ------ Cryofiber Web Large Storage Unit Improved Signal Interpreter Improved Terrain Scanner Trap Reconfigurator > --- WEAPON (3) ------- Flak Cannon > --- INVENTORY (15) --- Improved Ion Engine Improved Ion Engine Light Nuclear Core Improved Airjet Improved Cooling System Huge Storage Unit Hacking Suite Assault Rifle Heavy Assault Rifle Shock Bomb Launcher Grenade Launcher Rocket Launcher Rocket Launcher Rocket Launcher Mining Laser Peak State ------------ > --- POWER ------------ Deuterium Engine Improved Deuterium Engine > --- PROPULSION ------- Light Treads Light Treads Light Treads > --- UTILITY ---------- Cryofiber Web Large Storage Unit Improved Signal Interpreter Improved Terrain Scanner Trap Reconfigurator > --- WEAPON ----------- Improved Assault Rifle Flak Cannon Bore Cannon > --- INVENTORY -------- Improved Ion Engine Improved Ion Engine Light Nuclear Core Improved Airjet Improved Cooling System Huge Storage Unit Assault Rifle Assault Rifle Heavy Assault Rifle Shock Bomb Launcher Grenade Launcher Rocket Launcher Rocket Launcher Rocket Launcher Mining Laser [Rating: 43] Favorites ----------- Power Light Nuclear Core Engine Improved Ion Engine Power Core Light Nuclear Core Propulsion Light Treads Treads Light Treads Leg Aluminum Leg Utility Large Storage Unit Device Improved Terrain Scanner Storage Large Storage Unit Processor Signal Interpreter Weapon Assault Rifle Energy Gun EM Pulse Gun Ballistic Gun Assault Rifle Ballistic Cannon Bore Cannon Launcher Grenade Launcher Special Weapon Mining Laser Build | -11 -10 -10 -10 -9 -8 -7 ------- Run | Yrd Mat Min Exi Min Mat Fac Slots Evolved 6 | . . . . . 4 2 Power 1 | . . . . . . 1 Propulsion 1 | . . . . . 1 . Utility 3 | . . . . . 3 . Weapon 1 | . . . . . . 1 Parts Attached 45 | 13 9 5 1 . 14 3 Power 7 | 1 2 . 1 . 1 2 Engine 5 | 1 1 . 1 . 1 1 Core 2 | . 1 . . . . 1 Reactor . | . . . . . . . Propulsion 8 | 4 . . . . 4 . Treads 6 | 2 . . . . 4 . Leg 2 | 2 . . . . . . Wheel . | . . . . . . . Hover . | . . . . . . . Flight . | . . . . . . . Utility 17 | 4 5 2 . . 6 . Device 11 | 3 2 1 . . 5 . Storage 4 | 1 3 . . . . . Processor 2 | . . 1 . . 1 . Hackware . | . . . . . . . Protection . | . . . . . . . Artifact . | . . . . . . . Weapon 13 | 4 2 3 . . 3 1 Energy Gun 2 | 2 . . . . . . Energy Cannon . | . . . . . . . Ballistic Gun 6 | 2 1 1 . . 2 . Ballistic Cannon 3 | . . 1 . . 1 1 Launcher 1 | . 1 . . . . . Special Weapon 1 | . . 1 . . . . Impact Weapon . | . . . . . . . Slashing Weapon . | . . . . . . . Piercing Weapon . | . . . . . . . Special Melee Weapon . | . . . . . . . Unidentified Prototypes 1 | . . . . . 1 . Parts Lost 8 | . . 1 . . 2 5 Power 2 | . . 1 . . . 1 Propulsion 3 | . . . . . 1 2 Utility 1 | . . . . . 1 . Weapon 2 | . . . . . . 2 Highest Loss Streak 4 | . . 1 . . 1 4 To Critical Strikes . | . . . . . . . Average Slot Usage (%) 98 | . 100 99 98 100 92 98 Engine 5 | . 1 . 12 14 9 14 Core 7 | . 12 13 . . . . Treads 26 | . 28 28 28 28 20 22 Device 11 | . 14 7 . . 26 23 Storage 12 | . 14 14 14 14 9 7 Processor 5 | . . 6 14 14 9 7 Ballistic Gun 13 | . 16 13 14 14 9 7 Ballistic Cannon 5 | . . 1 14 14 8 14 Launcher 6 | . 10 13 . . . . Naked Turns . | . . . . . . . Heaviest Build 90 | 15 90 37 38 38 44 60 Greatest Support 60 | 40 40 40 40 40 60 60 Greatest Overweight (x) 2 | . 2 . . . 1 1 Average Overweight (x) . | . . . . . . . Largest Inventory Capacity 25 | 8 25 15 15 15 15 15 Average Capacity 14 | 7 14 15 15 15 15 15 Most Carried 15 | 5 15 15 14 14 15 15 Average Carried 13 | 1 12 14 13 14 13 14 Final Capacity 15 | 8 15 15 15 15 15 15 Final Carried 15 | 2 15 14 14 14 14 15 Class Distribution -------------------- 80% | Mutant 11% | Scavenger-Skirmisher 7% | Skirmisher Dominant Class ---------------- Mutant | -10/Materials Mutant | -10/Mines Mutant | -10/Exiles Mutant | -9/Mines Skirmisher | -8/Materials Scavenger-Skirmisher | -7/Factory Resources | -11 -10 -10 -10 -9 -8 -7 ----------- Run | Yrd Mat Min Exi Min Mat Fac Matter Collected 1032 | 309 284 104 . 60 260 15 Remotely . | . . . . . . . Salvage Created 1010 | 163 362 96 . 45 299 45 Parts 62 | 15 24 2 . 3 12 6 Haulers Intercepted 1 | . . . . . . 1 Recyclers Shooed 1 | . 1 . . . . . Parts Field Recycled . | . . . . . . . Retrieved Matter . | . . . . . . . Parts Self-Destructed . | . . . . . . . Prevented . | . . . . . . . Kills | -11 -10 -10 -10 -9 -8 -7 ------- Run | Yrd Mat Min Exi Min Mat Fac Combat Hostiles Destroyed 18 | . 8 2 . 1 6 1 Guns 7 | . 5 . . 1 1 . Cannons 7 | . . 2 . . 5 . AOE 4 | . 3 . . . . 1 Classes Destroyed 10 | 2 4 . . . 1 3 Worker 2 | . . . . . . 2 Tunneler 4 | 4 . . . . . . Hauler 1 | . . . . . . 1 Recycler 2 | 1 1 . . . . . Operator 1 | . 1 . . . . . Watcher 3 | . 3 . . . . . Swarmer 4 | . 3 . . 1 . . Grunt 10 | . 5 2 . 1 2 . Sentry 4 | . . . . . 4 . Programmer 1 | . . . . . . 1 Best Kill Streak 4 | 3 4 2 . 1 2 3 Combat Bots Only 3 | . 3 2 . 1 2 1 Max Kills in Single Turn 3 | 2 3 1 . 1 1 3 Gunslinging 1 | . 1 . . . . . Exploded 2 | . 2 . . . . 1 Melee . | . . . . . . . Uniques/NPCs Destroyed . | . . . . . . . Combat | -11 -10 -10 -10 -9 -8 -7 -------- Run | Yrd Mat Min Exi Min Mat Fac Hostile Shots Fired 219 | . 49 8 . 11 55 96 Missed 87 | . 13 2 . 3 20 49 Damage Taken 1718 | . 419 91 . 65 520 623 Core 271 | . 58 . . 32 63 118 Absorbed by Shields . | . . . . . . . Core Remaining (%) 84 | 100 . . . 64 88 . Volleys Fired 94 | 9 30 7 . 5 29 14 Largest 3 | 2 2 2 . 2 2 3 Hottest 124 | 90 60 100 . 77 80 124 Shots Fired 190 | 18 59 12 . 10 58 33 Gun 135 | 18 56 6 . 5 36 14 Cannon 49 | . . 3 . 5 22 19 Launcher 5 | . 3 2 . . . . Special 1 | . . 1 . . . . Kinetic 159 | 1 48 9 . 10 58 33 Thermal 9 | 8 . 1 . . . . Explosive 5 | . 3 2 . . . . Electromagnetic 17 | 9 8 . . . . . Robot Hit Streak 14 | 4 14 3 . 1 8 5 Robot Miss Streak 10 | 3 5 2 . 10 4 10 Penetration Max . | . . . . . . . Secondary Targets 1 | . 1 . . . . . Max Gunslinging Chain 1 | . 1 . . . . . Shots Hit Robots 109 | 9 37 6 . 1 34 22 Core Hits 56 | 6 23 3 . 2 12 10 Critical Kills 8 | . . 2 . 1 5 . Critical Parts Destroyed 6 | . 1 . . . 5 . Critical Strikes 14 | . 1 2 . 1 10 . Destroy 14 | . 1 2 . 1 10 . Melee Attacks . | . . . . . . . Impact . | . . . . . . . Slashing . | . . . . . . . Piercing . | . . . . . . . Sneak Attacks . | . . . . . . . Combat Hostiles . | . . . . . . . Follow-up Attacks . | . . . . . . . Damage Inflicted 2476 | 163 635 177 . 42 550 909 Guns 1062 | 163 408 39 . 15 303 134 Cannons 588 | . . 67 . 27 233 261 Explosions 806 | . 221 71 . . . 514 Melee . | . . . . . . . Ramming 20 | . 6 . . . 14 . Kinetic 1425 | 15 331 106 . 42 536 395 Thermal 599 | 85 . . . . . 514 Explosive 292 | . 221 71 . . . . Electromagnetic 140 | 63 77 . . . . . Impact . | . . . . . . . Slashing . | . . . . . . . Piercing . | . . . . . . . Highest Corruption 1 | . . . . . . 1 Average Corruption 1 | . . . . . . 1 Corruption Purged . | . . . . . . . Corruption Blocked . | . . . . . . . Effects 1 | . . . . . . 1 Matter Fused 1 | . . . . . . 1 Overload Shots . | . . . . . . . Overflow Damage 244 | . 4 . . . . 240 Projectiles . | . . . . . . . Explosions 244 | . 4 . . . . 240 Melee . | . . . . . . . Knockbacks 4 | . . . . . 2 2 Impact . | . . . . . . . Kinetic 4 | . . . . . 2 2 Secondary . | . . . . . . . Self-Inflicted Damage 176 | . 10 . . . . 166 Shots 4 | . 1 . . . . 3 Rammed 4 | . 2 . . . 1 1 Targets Rammed 4 | . 2 . . . 1 1 Kicked . | . . . . . . . Crushed . | . . . . . . . Highest Temperature 148 | 148 86 42 . 90 . 77 Average Temperature 47 | 69 45 16 . 45 . 36 Received Heat Transfer 576 | . 168 51 . . 225 132 Siege Activations . | . . . . . . . Robots Corrupted . | . . . . . . . Combat Hostiles . | . . . . . . . Parts Fried . | . . . . . . . Impact Corruptions . | . . . . . . . Robots Melted . | . . . . . . . Combat Hostiles . | . . . . . . . Parts Melted . | . . . . . . . Heat Transferred 559 | 259 . . . . . 300 Parts Sabotaged . | . . . . . . . Parts Stolen . | . . . . . . . Parts Stripped . | . . . . . . . Power Chain Reactions . | . . . . . . . Alert | -11 -10 -10 -10 -9 -8 -7 ------- Run | Yrd Mat Min Exi Min Mat Fac Peak Influence 317 | 25 152 130 . 98 159 317 Initial 37 | . . 5 . . 37 24 Average 28 | 16 23 12 . 90 65 36 Maximum Alert Level 1 | . . . . . . 1 Low Security (%) 99 | 100 100 100 . 100 100 96 Level 1 . | . . . . . . 3 Level 2 . | . . . . . . . Level 3 . | . . . . . . . Level 4 . | . . . . . . . Level 5 . | . . . . . . . High Security . | . . . . . . . Max Security . | . . . . . . . Squads Dispatched 5 | . 1 . . . 2 2 Investigation . | . . . . . . . Extermination 1 | . . . . . . 1 Reinforcement 3 | . 1 . . . 2 . Assault . | . . . . . . . Garrison 1 | . . . . . . 1 Intercept . | . . . . . . . Searches Triggered . | . . . . . . . Construction Impeded . | . . . . . . . Haulers Reinforced . | . . . . . . . Active Scanning Responses . | . . . . . . . Cargo Convoy Interrupts . | . . . . . . . Stealth | -11 -10 -10 -10 -9 -8 -7 --------- Run | Yrd Mat Min Exi Min Mat Fac Distress Signals 2 | . . . . . 2 . Communications Jammed . | . . . . . . . Distress Signals . | . . . . . . . Times Spotted 47 | . 13 5 . 4 13 12 Peak Tracking Total 9 | . 3 2 . 3 4 9 Tactical Retreats 1 | . . . . . 1 . Traps | -11 -10 -10 -10 -9 -8 -7 ------- Run | Yrd Mat Min Exi Min Mat Fac Traps Triggered 1 | . . . . . 1 . Indirectly . | . . . . . . . Trap Hack Attempts . | . . . . . . . Triggered . | . . . . . . . Disarmed . | . . . . . . . Reprogrammed . | . . . . . . . Reused . | . . . . . . . Traps Reconfigurated 3 | . . . . . 2 1 Traps Extracted . | . . . . . . . Installed . | . . . . . . . Triggered . | . . . . . . . Machines | -11 -10 -10 -10 -9 -8 -7 ---------- Run | Yrd Mat Min Exi Min Mat Fac Machines Disabled 16 | . . . . . . 16 Max in Single Turn 16 | . . . . . . 16 Machines Repaired . | . . . . . . . Machines Dismantled . | . . . . . . . Machines Sabotaged . | . . . . . . . Overloaded Fab Kills . | . . . . . . . Hacking | -11 -10 -10 -10 -9 -8 -7 --------- Run | Yrd Mat Min Exi Min Mat Fac Machines Accessed 12 | . 6 . 5 . 1 . Terminals 5 | . 5 . . . . . Fabricators . | . . . . . . . Repair Stations 1 | . 1 . . . . . Recycling Units 1 | . . . . . 1 . Scanalyzers . | . . . . . . . Garrison Access . | . . . . . . . Total Hacks 60 | . 9 . 50 . 1 . Successful 56 | . 5 . 50 . 1 . Failed 4 | . 4 . . . . . Catastrophic . | . . . . . . . Database Lockouts . | . . . . . . . Manual 2 | . . . 2 . . . Terminals 7 | . 7 . . . . . Fabricators . | . . . . . . . Repair Stations 2 | . 2 . . . . . Recycling Units 1 | . . . . . 1 . Scanalyzers . | . . . . . . . Garrison Access . | . . . . . . . Terminal Hacks 54 | . 4 . 50 . . . Record 52 | . 3 . 49 . . . Maintenance Status 1 | . 1 . . . . . Derelict Proto ID Bank 1 | . . . 1 . . . Fabricator Hacks . | . . . . . . . Repair Station Hacks 1 | . 1 . . . . . Scan Component 1 | . 1 . . . . . Recycling Unit Hacks 1 | . . . . . 1 . Report Inventory 1 | . . . . . 1 . Scanalyzer . | . . . . . . . Garrison Access Hacks . | . . . . . . . Unauthorized Hacks . | . . . . . . . Terminals . | . . . . . . . Fabricators . | . . . . . . . Repair Stations . | . . . . . . . Recycling Units . | . . . . . . . Scanalyzers . | . . . . . . . Garrison Access . | . . . . . . . Data Cores Recovered . | . . . . . . . Used . | . . . . . . . Hacking Detections 4 | . 4 . . . . . Full Trace Events . | . . . . . . . Feedback Events . | . . . . . . . Feedback Blocked . | . . . . . . . Robot Schematics Acquired . | . . . . . . . Robots Built . | . . . . . . . Authchips . | . . . . . . . Time . | . . . . . . . Total Robot Build Rating . | . . . . . . . Part Schematics Acquired . | . . . . . . . Parts Built . | . . . . . . . Authchips . | . . . . . . . Time . | . . . . . . . Total Part Build Rating . | . . . . . . . Parts Repaired . | . . . . . . . Time . | . . . . . . . Parts Recycled . | . . . . . . . Recycled Matter . | . . . . . . . Retrieved Matter . | . . . . . . . Retrieved Components . | . . . . . . . Parts Scanalyzed . | . . . . . . . Part Schematics Acquired . | . . . . . . . Parts Damaged . | . . . . . . . Bothacking | -11 -10 -10 -10 -9 -8 -7 ------------ Run | Yrd Mat Min Exi Min Mat Fac Used RIF Installer . | . . . . . . . Robots Hacked . | . . . . . . . Non-combat . | . . . . . . . Combat . | . . . . . . . Robot Hacks Applied . | . . . . . . . Relay Couplers Released . | . . . . . . . Fabnet Peak Effective % . | . . . . . . . Robots Rewired . | . . . . . . . Allies Hacked . | . . . . . . . Hacks Repelled . | . . . . . . . Allies | -11 -10 -10 -10 -9 -8 -7 -------- Run | Yrd Mat Min Exi Min Mat Fac Total Allies 5 | . . 5 . . . . Largest Group 4 | . . 4 3 2 1 . Highest-Rated Group 71 | . . 71 55 24 16 . Highest-Rated Ally 31 | . . 31 31 16 16 . Total Orders . | . . . . . . . Ally Attacks 19 | . . 9 . 9 1 . Total Damage 139 | . . 86 . 53 . . Kills 5 | . . 2 . 3 . . Allies Corrupted . | . . . . . . . Allies Melted 1 | . . 1 . . . . Intel | -11 -10 -10 -10 -9 -8 -7 ------- Run | Yrd Mat Min Exi Min Mat Fac Robot Analysis Total . | . . . . . . . Derelict Logs Recovered 1 | . . 1 . . . . Drone Launches . | . . . . . . . Drone Recoveries . | . . . . . . . Exploration | -11 -10 -10 -10 -9 -8 -7 ------------- Run | Yrd Mat Min Exi Min Mat Fac Turns Passed 8806 | 417 3101 1958 1433 180 850 867 Spaces Moved 3518 | 128 1068 489 894 104 342 493 Core 18 | 18 . . . . . . Treads 3432 | 42 1068 489 894 104 342 493 Legs 68 | 68 . . . . . . Wheels . | . . . . . . . Hover . | . . . . . . . Flight . | . . . . . . . Fastest Speed 50 | 50 160 160 160 160 160 160 Average Speed 164 | 123 164 160 160 160 202 160 Slowest Speed 320 | 160 320 160 160 160 240 240 Overloaded Moves . | . . . . . . . Propulsion Burnouts . | . . . . . . . Robots Hopped . | . . . . . . . Cave-ins Triggered . | . . . . . . . Exploration Rate (%) 52 | 5 97 98 93 25 32 16 Regions Visited 6 Branch Regions 3 Pre-discovered Areas 2 | . . 1 1 . . . Known Exits Taken 4 | . . 1 1 1 1 . Unknown Exits Taken 2 | 1 1 . . . . . Scrap Searched 2 | . . 2 . . . . Spaces Dug 1 | . . 1 . . . . Terrain Destroyed 92 | . 28 17 . 4 15 28 Melee . | . . . . . . . Projectile 23 | . . 3 . 4 15 1 AOE 69 | . 28 14 . . . 27 Terrain Rammed . | . . . . . . . Walls Destroyed . | . . . . . . . Machines Disabled . | . . . . . . . Actions | -11 -10 -10 -10 -9 -8 -7 --------- Run | Yrd Mat Min Exi Min Mat Fac Total 6353 | 368 2348 1651 897 108 442 539 Wait 2628 | 204 1221 1144 . . 36 23 Move 3512 | 127 1067 488 893 103 341 493 Hop . | . . . . . . . Pick Up 51 | 12 16 3 1 . 15 4 Fast Attach . | . . . . . . . Attach 22 | 8 . 1 1 . 10 2 Detach . | . . . . . . . Swap 23 | 5 9 4 . . 4 1 Drop 17 | 3 3 4 . . 6 1 Fire 94 | 9 30 7 . 5 29 14 Melee . | . . . . . . . Ram . | . . . . . . . Kick . | . . . . . . . Crush 4 | . 2 . . . 1 1 Escape Stasis . | . . . . . . . Rewire 2 | . . . 2 . . . Trap . | . . . . . . . Miscellaneous . | . . . . . . . Route ------- -11/Scrapyard -10/Materials (discovered 5 exits: *Mat x3 / *Min / [*Sub]) -10/Mines (discovered 3 exits: *Mat x2 / *Exi) -10/Exiles (discovered 2 exits: *Min x2) -9/Mines -8/Materials -7/Factory (discovered 2 exits: *Fac / [*Low]) History --------- Turn | Location | Event 7 | -11/Scrapyard | Discovered new exit (range 15) 418 | -11/Scrapyard | Entered Materials 437 | -10/Materials | Build established: Mutant 577 | -10/Materials | Discovered new exit (range 4) 637 | -10/Materials | Discovered new exit (range 10) 1108 | -10/Materials | Discovered new exit (range 3) 1189 | -10/Materials | Discovered new exit (range 10) 3073 | -10/Materials | Discovered new exit (range 5) 3519 | -10/Materials | Entered Mines 3532 | -10/Mines | Received a Mining Laser from a helpful Derelict 3543 | -10/Mines | Met a Derelict bent on vengeance 4084 | -10/Mines | Assisted by bots powering up and referring to "LRC-V3" 4108 | -10/Mines | Discovered new exit (range 7) 4132 | -10/Mines | Learned Materials security intel 4488 | -10/Mines | Discovered new exit (range 9) 4949 | -10/Mines | Identified exit to Materials 5247 | -10/Mines | A weapon hastily lodged in a ceiling crevice suddenly fell to the ground 5440 | -10/Mines | Escorted by a lone wolf Derelict 5460 | -10/Mines | Learned location of Storage (-7) 5461 | -10/Mines | Deemed a non-threat by the Exiles lab entrance 5461 | -10/Mines | Discovered new exit (range 5) 5466 | -10/Mines | Identified exit to Exiles 5477 | -10/Mines | Entered Exiles 5477 | -10/Exiles | Accompanied by 3 allies 5505 | -10/Exiles | Discovered new exit (range 14) 5524 | -10/Exiles | Identified exit to Mines 5559 | -10/Exiles | Met 8R-AWN 5589 | -10/Exiles | Met EX-HEX 5716 | -10/Exiles | Met EX-DEC 5781 | -10/Exiles | Visited The Gauntlet 6084 | -10/Exiles | Learned location of Zion (-7) 6133 | -10/Exiles | Discovered exit to Mines (range 14) 6261 | -10/Exiles | Met EX-BIN 6285 | -10/Exiles | Aligned with FarCom system 6287 | -10/Exiles | Given EX-Vault access code 6344 | -10/Exiles | Opened EX-Vault 6356 | -10/Exiles | Found Trap Reconfigurator 6408 | -10/Exiles | Warned to stay clear of 0b10 Research branches 6910 | -10/Exiles | Left Exiles lab with Trap Reconfigurator 6910 | -10/Exiles | Entered Mines 6910 | -9/Mines | Accompanied by 2 allies 6921 | -9/Mines | Received a Rocket Launcher from a helpful Derelict 6981 | -9/Mines | Assembled infested the area 7082 | -9/Mines | Discovered new exit (range 6) 7089 | -9/Mines | Identified exit to Materials 7090 | -9/Mines | Entered Materials 7090 | -8/Materials | Accompanied by 1 ally 7090 | -8/Materials | Evolved 4 slots: Propulsion x1, Utility x3 7385 | -8/Materials | Build established: Skirmisher 7883 | -8/Materials | Discovered new exit (range 16) 7939 | -8/Materials | Identified exit to Factory 7940 | -8/Materials | Entered Factory 7940 | -7/Factory | Evolved 2 slots: Power x1, Weapon x1 8046 | -7/Factory | Build established: Scavenger-Skirmisher 8277 | -7/Factory | Discovered new exit (range 13) 8297 | -7/Factory | Identified exit to Factory 8776 | -7/Factory | Discovered new exit (range 15) 8778 | -7/Factory | Garrison activated, responded to threat 8807 | -7/Factory | Self-destructed Last Messages --------------- U-05 Engineer lays Concrete. K-01 Serf collects debris. U-05 Engineer lays Concrete. Slug penetrates Wall. U-05 Engineer lays Concrete. K-01 Serf collects debris. Critical hit (Burn: +37). U-05 Engineer lays Concrete. Penetrated by Slug. U-05 Engineer lays Concrete. [Achievement: Oops] Imp. Assault Rifle destroyed. U-05 Engineer lays Concrete. K-01 Serf collects debris. U-05 Engineer lays Concrete. Imp. Deuterium Engine destroyed. U-05 Engineer lays Concrete. Lgt. Treads destroyed. K-01 Serf collects debris. U-05 Engineer lays Concrete. Map ----- +----------------------------------------------------+ | ?????????????????????????????????????????# ??????? | | ??????????????????????????????????? ??????? | | ??????????????????????????????? ?????# | | ????????????????????????????? ? ???# | | ????????????????????????????T ???? # | | ????????????????????????????" ?????# | | ???????????????????????????#" ????# | | ??????????????????#?????????" ####?### | | ????????????????????????????# ## | | ??????????????#?????????????# """" ## | | ????????#??????????????????## """" ## | | ????????????###########????#" """" ## | | ????????????# #? ??#" """ ## | | ????????????# """ """ #????#" k #? | | ????????????# """ """ #????#" k k "+##+### | | ????????????# """ """ # ???#" | | ???????? ???# "" "" ###+### ### | | ????????????# "" "" ## #?# | | ????????????# + ! #?#+ | | ????????????# # #??? | | ????????????####+###### #??? | | ???????????????# #??? | | ?????????? ?#??# #??? | | ????????# #### +??? | | ????????# h #??? | | ????????# g @ == #??? | | ????????+ g #??? | | ????????# g * #??? | | ????????## g % r #??# | | ?????????# #####+######## u #??? | | ?????????# ??? ?? ????## #??? | | ?????????#???#????????#?# #??? | | ???????????????????Y?#??# ? ????? | | ????????????????????????#Y########""T"???????????? | | ????????????????????????#r#??##????""????????????? | | ????????????????? ????#??w##?#?#?????????????????? | | ????????????????????????? ??????????????????????? | | ????????????????????g???? ??????????????????????? | | ?????????????????????????< ??????????????????????? | | ????????????????????????? ??????????????????????? | | ????????????????????????? ??????????????????????? | | ?????????????????????????????????????????????????? | | ?????????????????????????????????????????????????? | | ?????????????????????????????????????????????????? | | ?????????????????????????????????????????????????? | | ?????????????????????????????????????????????????? | | ?????????????????????????????????????????????????? | | ?????????????????????????????????????????????????? | | ?????????????????????????????????????????????????? | | ?????????????????????????????????????????????????? | +----------------------------------------------------+ Best States ------------- Heat Dissipation 34 Energy Generation 25 Energy Capacity 465 Matter Stores 300 Matter Capacity 300 Sight Range 16 Terrain Scan Range 16 Terrain Scan Density 10 Base Temperature (-) 100 Evasion (%) 52 Recoil Reduction 3 Item Schematics ----------------- None Robot Schematics ------------------ None Fabricated ------------ Nothing Alien Tech Used ----------------- None Achievements -------------- Backstab It Was An Accident, I Swear Librarian Oops Tourist Troublemaker Challenges ------------ None Game ------ Seed UltimateStructuralDoomcannon Manual? 0 Play Time 01:06:05 Cumulative 8.3 hours Start 2024.04.03 @ 23:07:45 End 2024.04.04 @ 00:23:33 Sessions 1 Manual Loads 0 Difficulty Rogue Special Mode None Game No. 10 Rogue 10 Adventurer 0 Explorer 0 Win Type - Total 0 Types 0/0/0/0/0/0/0/0/0 Lore% 11 Gallery% 10 Achievement% 10 Wizard Run 0 Options --------- Layout 1 ASCII 0 Keyboard 0 Movement Mouse Keybinds 0 Fullscreen 0 Font 28/SmallcapsGlow Map View 50x35 Zoom Use 0% Tactical HUD 0 Map Filters NONE Filters NONE Steam 1 RUN: 2f6827b4-4bb6-4b6d-bf0b-bfcdba32439e